Cogmind - Beta 13 X1 @@@ ROGUE MODE // 2023.09.28 @ 14:46:18 Player: DuckBoy Result: Destroyed by S-27 Virus with Autogun Performance ------------- Evolutions (3) 1500 Regions Visited (10) 2000 Robots Destroyed (43) 215 Value Destroyed (862) 862 Prototype IDs (25) 500 Alien Tech Used (0) 0 Bonus (108) 108 TOTAL SCORE: 5185 Bonus ------- High Alert Combat Kills 11 Aligned with FarCom 300 Friendly Fire -203 Cogmind --------- Core Integrity 0/700 Matter 300/300 Energy 100/100 System Corruption 4% Temperature Cool (0) Movement Core (50) Location -7/Lower Caves Parts ------- > --- POWER (1) -------- (None) > --- PROPULSION (5) --- (None) > --- UTILITY (5) ------ Improved Terrain Scan Processor Hacking Suite Hacking Suite > --- WEAPON (2) ------- (None) > --- INVENTORY (5) ---- Gravmag System Microactuators Skeleton Box Peak State ------------ > --- POWER ------------ (None) > --- PROPULSION ------- Gravmag System Gravmag System Gravmag System Gravmag System Gravmag System > --- UTILITY ---------- Machine Analyzer Improved Melee Analysis Suite Improved Propulsion Shielding Hacking Suite Hacking Suite > --- WEAPON ----------- Plasma Cannon Dirty Datajack > --- INVENTORY -------- Gravmag System Improved Terrain Scanner Microactuators Skeleton Box Chainsword [Rating: 48] Favorites ----------- Power Ion Engine Engine Ion Engine Propulsion Gravmag System Leg Aluminum Leg Hover Unit Gravmag System Flight Unit Flight Unit Utility Hacking Suite Device Structural Scanner Storage Small Storage Unit Processor Machine Analyzer Hackware Hacking Suite Protection Propulsion Shielding Weapon Assault Rifle Energy Gun Medium Laser Energy Cannon Plasma Cannon Ballistic Gun Assault Rifle Launcher Missile Launcher Special Weapon Mining Laser Impact Weapon Great Maul Slashing Weapon Chainsword Special Melee Weapon Dirty Datajack Build | -11 -10 -10 -9 -9 -9 -8 -8 -7 -7 -7 ------- Run | Jun Mat Min Mat Min Exi Min Mat Fac Low Low Slots Evolved 6 | . . . 2 . . . 2 2 . . Power . | . . . . . . . . . . . Propulsion 3 | . . . 1 . . . 1 1 . . Utility 3 | . . . 1 . . . 1 1 . . Weapon . | . . . . . . . . . . . Parts Attached 53 | 6 1 5 4 4 . 2 11 11 2 7 Power 3 | 1 . . 2 . . . . . . . Engine 3 | 1 . . 2 . . . . . . . Core . | . . . . . . . . . . . Reactor . | . . . . . . . . . . . Propulsion 20 | 2 . 2 1 1 . . 5 6 1 2 Treads . | . . . . . . . . . . . Leg 3 | 2 . . . . . . 1 . . . Wheel . | . . . . . . . . . . . Hover 8 | . . . . . . . 1 6 1 . Flight 9 | . . 2 1 1 . . 3 . . 2 Utility 16 | 1 . 1 . 2 . 1 3 4 . 4 Device 4 | . . 1 . 1 . . . 1 . 1 Storage 2 | 1 . . . . . . 1 . . . Processor 4 | . . . . . . . 1 1 . 2 Hackware 2 | . . . . . . . 1 1 . . Protection 4 | . . . . 1 . 1 . 1 . 1 Artifact . | . . . . . . . . . . . Weapon 14 | 2 1 2 1 1 . 1 3 1 1 1 Energy Gun 3 | 1 . 2 . . . . . . . . Energy Cannon 1 | . . . . . . . . 1 . . Ballistic Gun 2 | 1 1 . . . . . . . . . Ballistic Cannon . | . . . . . . . . . . . Launcher 3 | . . . . . . . 3 . . . Special Weapon 1 | . . . 1 . . . . . . . Impact Weapon 2 | . . . . 1 . 1 . . . . Slashing Weapon 1 | . . . . . . . . . . 1 Piercing Weapon . | . . . . . . . . . . . Special Melee Weapon 1 | . . . . . . . . . 1 . Unidentified Prototypes . | . . . . . . . . . . . Parts Lost 33 | . 1 4 . 1 . 1 11 1 . 14 Power 1 | . . . . . . 1 . . . . Propulsion 18 | . . 2 . . . . 8 1 . 7 Utility 6 | . . . . . . . 2 . . 4 Weapon 8 | . 1 2 . 1 . . 1 . . 3 Highest Loss Streak 12 | . 1 3 . 1 . 1 5 1 . 12 To Critical Strikes . | . . . . . . . . . . . Average Slot Usage (%) 73 | . 84 75 83 80 88 79 69 73 87 37 Engine 4 | . 14 13 10 11 11 2 . . . . Leg 5 | . 28 17 . . . . . . . . Hover 11 | . . . . . . . . 35 38 4 Flight 11 | . . 2 33 33 33 33 25 . . 1 Device 5 | . . . 11 12 22 11 7 5 . 1 Storage 6 | . 14 14 11 11 11 11 8 . . . Processor 6 | . . . . . . . 8 9 15 10 Hackware 6 | . . . . . . . . 15 15 15 Protection 3 | . . . . . . 11 8 . 7 . Energy Gun 1 | . 3 15 7 . . . . . . . Energy Cannon 1 | . . . . . . . . 6 7 . Ballistic Gun 4 | . 24 10 . . . . . . . . Impact Weapon 3 | . . . . 11 11 11 7 . . . Naked Turns . | . . . . . . . . . . . Heaviest Build 14 | 14 14 14 12 12 12 12 11 9 10 10 Greatest Support 36 | 20 20 20 12 12 12 12 16 36 18 18 Greatest Overweight (x) 4 | . . 4 . . . . 1 2 . 1 Average Overweight (x) . | . . . . . . . . . . . Largest Inventory Capacity 8 | 8 8 8 8 8 8 8 8 5 5 5 Average Capacity 6 | 7 8 8 8 8 8 8 7 5 5 5 Most Carried 8 | 6 8 8 7 8 8 8 8 5 5 5 Average Carried 6 | 3 7 7 5 7 7 8 6 4 5 3 Final Capacity 8 | 8 8 8 8 8 8 8 5 5 5 5 Final Carried 8 | 6 8 7 7 8 8 8 4 5 5 3 Class Distribution -------------------- 39% | Hacker-Mutant 26% | Mutant 9% | Sprinter 9% | Scout 9% | Scavenger-Mutant 3% | Scavenger-Scout Dominant Class ---------------- Mutant | -10/Materials Mutant | -10/Mines Scavenger-Mutant | -9/Materials Scavenger-Mutant | -9/Mines Sprinter | -9/Exiles Sprinter | -8/Mines Scout | -8/Materials Hacker-Mutant | -7/Factory Hacker-Mutant | -7/Lower Caves Hacker-Mutant | -7/Lower Caves Resources | -11 -10 -10 -9 -9 -9 -8 -8 -7 -7 -7 ----------- Run | Jun Mat Min Mat Min Exi Min Mat Fac Low Low Matter Collected 996 | 181 244 46 14 71 . 5 43 276 49 67 Remotely . | . . . . . . . . . . . Salvage Created 1219 | . 291 193 14 101 . 109 98 208 107 98 Parts 70 | . 22 16 3 5 . 2 6 8 1 7 Haulers Intercepted . | . . . . . . . . . . . Recyclers Shooed 1 | . . . . . . 1 . . . . Parts Field Recycled . | . . . . . . . . . . . Retrieved Matter . | . . . . . . . . . . . Parts Self-Destructed 6 | . . . . . . . . . 1 5 Prevented 1 | . . . . . . . . . 1 . Kills | -11 -10 -10 -9 -9 -9 -8 -8 -7 -7 -7 ------- Run | Jun Mat Min Mat Min Exi Min Mat Fac Low Low Combat Hostiles Destroyed 32 | . 9 5 . 3 . 3 5 2 1 4 Melee 6 | . . . . 1 . 2 . . . 3 Guns 14 | . 9 5 . . . . . . . . Cannons 4 | . . . . . . . . 2 1 1 AOE 5 | . . . . . . . 5 . . . Classes Destroyed 9 | . 3 1 . . . . 1 3 1 . Worker 1 | . . . . . . . . 1 . . Tunneler 2 | . . 1 1 . . . . . . . Recycler 5 | . 1 1 . 1 . 1 . 1 . . Watcher 2 | . . . . . . . 2 . . . Swarmer 22 | . 6 3 . 3 . 3 3 . . 4 Grunt 8 | . 3 2 . . . . 2 . 1 . Sentry 1 | . . . . . . . . 1 . . Hunter 1 | . . . . . . . . . 1 . Programmer 1 | . . . . . . . . 1 . . Best Kill Streak 4 | . 4 4 1 3 . 4 3 1 1 3 Combat Bots Only 3 | . 3 3 . 3 . 3 3 1 1 3 Max Kills in Single Turn 1 | . 1 1 1 1 . 1 1 1 1 1 Gunslinging . | . . . . . . . . . . . Exploded 1 | . . . . . . . 1 . . . Melee 1 | . . . . 1 . 1 . . . 1 Uniques/NPCs Destroyed . | . . . . . . . . . . . Combat | -11 -10 -10 -9 -9 -9 -8 -8 -7 -7 -7 -------- Run | Jun Mat Min Mat Min Exi Min Mat Fac Low Low Damage Taken 3261 | . 496 309 14 99 . 166 749 165 15 1248 Core 1346 | . 94 90 14 17 . 24 407 25 . 675 Absorbed by Shields . | . . . . . . . . . . . Redirected to Shielding 141 | . . . . . . 7 34 . 9 91 Ignored by Resistances 8 | . . . . . . . . . . 8 Core Remaining (%) 59 | 100 . 26 . . . 86 26 . . . Volleys Fired 103 | . 33 23 1 . . . 13 18 9 6 Largest 2 | . 2 2 2 . . . 1 1 1 1 Hottest 150 | . 60 90 150 . . . 36 80 80 80 Shots Fired 155 | . 66 42 2 . . . 13 17 9 6 Gun 109 | . 66 42 1 . . . . . . . Cannon 32 | . . . . . . . . 17 9 6 Launcher 13 | . . . . . . . 13 . . . Special 1 | . . . 1 . . . . . . . Kinetic 62 | . 55 7 . . . . . . . . Thermal 69 | . . 35 2 . . . . 17 9 6 Explosive 13 | . . . . . . . 13 . . . Electromagnetic 11 | . 11 . . . . . . . . . Robot Hit Streak 10 | . 6 9 4 . . . 5 5 10 2 Robot Miss Streak 5 | . 5 3 . . . . 1 2 1 2 Penetration Max . | . . . . . . . . . . . Secondary Targets . | . . . . . . . . . . . Shots Hit Robots 103 | . 29 25 1 6 . 7 7 11 9 8 Core Hits 54 | 1 14 11 1 2 . . 13 4 4 4 Critical Kills 3 | . 1 . . 1 . . . 1 . . Critical Parts Destroyed 3 | . . . . . . 3 . . . . Critical Strikes 7 | . 1 1 . 1 . 3 . 1 . . Burn 1 | . . 1 . . . . . . . . Meltdown 1 | . . . . . . . . 1 . . Destroy 1 | . 1 . . . . . . . . . Smash 4 | . . . . 1 . 3 . . . . Melee Attacks 54 | . . . . 12 . 17 11 . 1 13 Impact 40 | . . . . 12 . 17 11 . . . Slashing 13 | . . . . . . . . . . 13 Piercing 1 | . . . . . . . . . 1 . Sneak Attacks 2 | . . . . 1 . 1 . . . . Combat Hostiles . | . . . . . . . . . . . Follow-up Attacks . | . . . . . . . . . . . Damage Inflicted 2954 | 1 359 290 13 271 . 341 876 298 210 295 Guns 662 | . 359 290 13 . . . . . . . Cannons 581 | . . . . . . . . 298 207 76 Explosions 765 | . . . . . . . 765 . . . Melee 945 | . . . . 271 . 341 111 . 3 219 Ramming 1 | 1 . . . . . . . . . . Kinetic 375 | . 325 50 . . . . . . . . Thermal 834 | . . 240 13 . . . . 298 207 76 Explosive 765 | . . . . . . . 765 . . . Electromagnetic 34 | . 34 . . . . . . . . . Impact 723 | . . . . 271 . 341 111 . . . Slashing 219 | . . . . . . . . . . 219 Piercing 3 | . . . . . . . . . 3 . Highest Corruption 4 | . . . . . . . . 4 4 4 Average Corruption 3 | . . . . . . . . 3 4 4 Corruption Purged . | . . . . . . . . . . . Corruption Blocked . | . . . . . . . . . . . Effects 17 | . . . . . . . . 7 5 5 Message Errors 3 | . . . . . . . . 1 1 1 Matter Fused 3 | . . . . . . . . . 1 2 Heat Flow Errors 5 | . . . . . . . . 2 3 . Energy Discharges 1 | . . . . . . . . . . 1 Data Loss (minor) 1 | . . . . . . . . . . 1 Data Loss (major) 3 | . . . . . . . . 3 . . Weapon Failures 1 | . . . . . . . . 1 . . Overload Shots . | . . . . . . . . . . . Overflow Damage 251 | . . . . 6 . 131 81 1 . 32 Projectiles 1 | . . . . . . . . 1 . . Explosions 27 | . . . . . . . 27 . . . Melee 223 | . . . . 6 . 131 54 . . 32 Knockbacks 2 | . . . . . . 1 1 . . . Impact 2 | . . . . . . 1 1 . . . Kinetic . | . . . . . . . . . . . Secondary . | . . . . . . . . . . . Self-Inflicted Damage 46 | . . . . . . . 46 . . . Shots 2 | . . . . . . . 2 . . . Rammed 3 | . . . . . . . 1 1 . 1 Targets Rammed 4 | 1 . . . . . . 1 1 . 1 Kicked 1 | 1 . . . . . . . . . . Crushed . | . . . . . . . . . . . Highest Temperature 295 | . 20 230 28 . . . . 280 295 96 Average Temperature 100 | . 8 116 16 . . . . 112 112 51 Received Heat Transfer 630 | . 141 159 9 . . . 243 24 9 45 Effects 2 | . . 2 . . . . . . . . Energy Bleed 1 | . . 1 . . . . . . . . Interference 1 | . . 1 . . . . . . . . Siege Activations . | . . . . . . . . . . . Robots Corrupted . | . . . . . . . . . . . Combat Hostiles . | . . . . . . . . . . . Parts Fried 6 | . . . . 1 . 2 3 . . . Impact Corruptions 13 | . . . . 3 . 6 4 . . . Robots Melted 1 | . . . . . . . . 1 . . Combat Hostiles . | . . . . . . . . . . . Parts Melted 2 | . . 1 . . . . . 1 . . Heat Transferred 1856 | . . 719 37 . . . . 550 400 150 Parts Sabotaged . | . . . . . . . . . . . Parts Stolen . | . . . . . . . . . . . Parts Stripped . | . . . . . . . . . . . Power Chain Reactions . | . . . . . . . . . . . Missiles Intercepted . | . . . . . . . . . . . Alert | -11 -10 -10 -9 -9 -9 -8 -8 -7 -7 -7 ------- Run | Jun Mat Min Mat Min Exi Min Mat Fac Low Low Peak Influence 480 | . 268 194 102 149 . 90 480 262 . . Initial 147 | . . 104 75 39 . . . 147 . . Average 152 | . 171 125 84 122 . 19 212 163 . . Maximum Alert Level 2 | . 1 . . . . . 2 1 . . Low Security (%) 73 | 100 51 100 100 100 . 100 46 82 . . Level 1 24 | . 48 . . . . . 46 17 . . Level 2 1 | . . . . . . . 6 . . . Level 3 . | . . . . . . . . . . . Level 4 . | . . . . . . . . . . . Level 5 . | . . . . . . . . . . . High Security . | . . . . . . . . . . . Max Security . | . . . . . . . . . . . Squads Dispatched 7 | . . . 1 . . . 4 1 . 1 Investigation 2 | . . . 1 . . . 1 . . . Extermination 1 | . . . . . . . . 1 . . Reinforcement 3 | . . . . . . . 3 . . . Assault 1 | . . . . . . . . . . 1 Garrison . | . . . . . . . . . . . Intercept . | . . . . . . . . . . . Searches Triggered . | . . . . . . . . . . . Construction Impeded . | . . . . . . . . . . . Haulers Reinforced . | . . . . . . . . . . . Active Scanning Responses . | . . . . . . . . . . . Cargo Convoy Interrupts . | . . . . . . . . . . . Stealth | -11 -10 -10 -9 -9 -9 -8 -8 -7 -7 -7 --------- Run | Jun Mat Min Mat Min Exi Min Mat Fac Low Low Distress Signals 1 | . . . . . . . 1 . . . Communications Jammed . | . . . . . . . . . . . Distress Signals . | . . . . . . . . . . . Times Spotted 80 | . 12 5 2 8 . 6 28 2 3 14 Peak Tracking Total 14 | . 4 3 2 5 . 4 10 2 1 14 Tactical Retreats 13 | . 2 . . 1 . 1 7 . 1 1 Traps | -11 -10 -10 -9 -9 -9 -8 -8 -7 -7 -7 ------- Run | Jun Mat Min Mat Min Exi Min Mat Fac Low Low Traps Triggered 2 | . . . . . . . . 2 . . Indirectly . | . . . . . . . . . . . Trap Hack Attempts . | . . . . . . . . . . . Triggered . | . . . . . . . . . . . Disarmed . | . . . . . . . . . . . Reprogrammed . | . . . . . . . . . . . Reused . | . . . . . . . . . . . Traps Extracted . | . . . . . . . . . . . Installed . | . . . . . . . . . . . Triggered 1 | . . . . . . . . . 1 . Machines | -11 -10 -10 -9 -9 -9 -8 -8 -7 -7 -7 ---------- Run | Jun Mat Min Mat Min Exi Min Mat Fac Low Low Machines Disabled 2 | . . . . . . . 1 1 . . Max in Single Turn 1 | . . . . . . . 1 1 . . Machines Repaired . | . . . . . . . . . . . Machines Sabotaged . | . . . . . . . . . . . Overloaded Fab Kills . | . . . . . . . . . . . Hacking | -11 -10 -10 -9 -9 -9 -8 -8 -7 -7 -7 --------- Run | Jun Mat Min Mat Min Exi Min Mat Fac Low Low Machines Accessed 18 | . 3 . 2 . 2 1 7 2 1 . Terminals 14 | . 3 . 2 . . 1 7 1 . . Fabricators 1 | . . . . . . . . 1 . . Repair Stations . | . . . . . . . . . . . Recycling Units . | . . . . . . . . . . . Scanalyzers . | . . . . . . . . . . . Garrison Access . | . . . . . . . . . . . Total Hacks 35 | . 5 . 5 . 2 3 16 3 1 . Successful 15 | . 2 . 1 . 2 2 6 1 1 . Failed 20 | . 3 . 4 . . 1 10 2 . . Catastrophic 7 | . 2 . 1 . . 1 3 . . . Database Lockouts . | . . . . . . . . . . . Manual 30 | . 5 . 5 . 1 3 14 2 . . Terminals 31 | . 5 . 5 . . 3 16 2 . . Fabricators 1 | . . . . . . . . 1 . . Repair Stations . | . . . . . . . . . . . Recycling Units . | . . . . . . . . . . . Scanalyzers . | . . . . . . . . . . . Garrison Access . | . . . . . . . . . . . Terminal Hacks 8 | . 1 . . . 2 2 2 . 1 . Record 1 | . . . . . 1 . . . . . Robot Schematic 1 | . . . . . . 1 . . . . Prototype ID Bank 1 | . . . . . . . 1 . . . Open Door 1 | . . . . . . . . . 1 . Emergency Access Points 1 | . . . . . . . 1 . . . Unreport Threat 1 | . . . . . . 1 . . . . Locate Traps 1 | . 1 . . . . . . . . . Derelict Proto ID Bank 1 | . . . . . 1 . . . . . Fabricator Hacks 1 | . . . . . . . . 1 . . Build 1 | . . . . . . . . 1 . . Repair Station Hacks . | . . . . . . . . . . . Recycling Unit Hacks . | . . . . . . . . . . . Scanalyzer . | . . . . . . . . . . . Garrison Access Hacks . | . . . . . . . . . . . Unauthorized Hacks 6 | . 1 . 1 . . . 4 . . . Terminals 6 | . 1 . 1 . . . 4 . . . Assimilate 2 | . . . . . . . 2 . . . Detonate 1 | . . . . . . . 1 . . . Operators 3 | . 1 . 1 . . . 1 . . . Fabricators . | . . . . . . . . . . . Repair Stations . | . . . . . . . . . . . Recycling Units . | . . . . . . . . . . . Scanalyzers . | . . . . . . . . . . . Garrison Access . | . . . . . . . . . . . Data Cores Recovered . | . . . . . . . . . . . Used . | . . . . . . . . . . . Hacking Detections 14 | . 3 . 2 . . 1 7 1 . . Full Trace Events 2 | . . . 1 . . . 1 . . . Feedback Events . | . . . . . . . . . . . Feedback Blocked . | . . . . . . . . . . . Robot Schematics Acquired 1 | . . . . . . 1 . . . . Robots Built . | . . . . . . . . . . . Authchips . | . . . . . . . . . . . Time . | . . . . . . . . . . . Total Robot Build Rating . | . . . . . . . . . . . Part Schematics Acquired . | . . . . . . . . . . . Parts Built 2 | . . . . . . . . 2 . . Authchips . | . . . . . . . . . . . Time 47 | . . . . . . . . 47 . . Total Part Build Rating 10 | . . . . . . . . 10 . . Parts Repaired . | . . . . . . . . . . . Time . | . . . . . . . . . . . Parts Recycled . | . . . . . . . . . . . Recycled Matter . | . . . . . . . . . . . Retrieved Matter . | . . . . . . . . . . . Retrieved Components . | . . . . . . . . . . . Parts Scanalyzed . | . . . . . . . . . . . Part Schematics Acquired . | . . . . . . . . . . . Parts Damaged . | . . . . . . . . . . . Bothacking | -11 -10 -10 -9 -9 -9 -8 -8 -7 -7 -7 ------------ Run | Jun Mat Min Mat Min Exi Min Mat Fac Low Low Used RIF Installer . | . . . . . . . . . . . Robots Hacked . | . . . . . . . . . . . Non-combat . | . . . . . . . . . . . Combat . | . . . . . . . . . . . Robot Hacks Applied . | . . . . . . . . . . . Relay Couplers Released . | . . . . . . . . . . . Fabnet Peak Effective % . | . . . . . . . . . . . Robots Rewired . | . . . . . . . . . . . Allies Hacked . | . . . . . . . . . . . Hacks Repelled . | . . . . . . . . . . . Allies | -11 -10 -10 -9 -9 -9 -8 -8 -7 -7 -7 -------- Run | Jun Mat Min Mat Min Exi Min Mat Fac Low Low Total Allies 7 | . . . . 3 . . 2 . 1 1 Largest Group 3 | . . . . 3 . . 1 . 1 1 Highest-Rated Group 127 | . . . . 76 . . 10 . 16 127 Highest-Rated Ally 127 | . . . . 31 . . 10 . 16 127 Total Orders . | . . . . . . . . . . . Ally Attacks . | . . . . . . . . . . . Total Damage . | . . . . . . . . . . . Kills . | . . . . . . . . . . . Allies Corrupted . | . . . . . . . . . . . Allies Melted . | . . . . . . . . . . . Intel | -11 -10 -10 -9 -9 -9 -8 -8 -7 -7 -7 ------- Run | Jun Mat Min Mat Min Exi Min Mat Fac Low Low Robot Analysis Total . | . . . . . . . . . . . Derelict Logs Recovered 4 | . . . . 2 . . . . 1 1 Drone Launches . | . . . . . . . . . . . Drone Recoveries . | . . . . . . . . . . . Exploration | -11 -10 -10 -9 -9 -9 -8 -8 -7 -7 -7 ------------- Run | Jun Mat Min Mat Min Exi Min Mat Fac Low Low Turns Passed 2489 | 85 354 175 105 183 71 76 485 462 230 263 Spaces Moved 3087 | 61 203 77 123 430 211 91 674 508 296 413 Core 444 | 5 . 1 . . . . 9 68 . 361 Treads . | . . . . . . . . . . . Legs 333 | 56 203 66 . . . . 8 . . . Wheels . | . . . . . . . . . . . Hover 740 | . . . . . . . 3 440 296 1 Flight 1570 | . . 10 123 430 211 91 654 . . 51 Fastest Speed 31 | 50 120 37 34 32 32 32 31 48 56 32 Average Speed 52 | 114 120 126 34 32 32 32 36 64 57 48 Slowest Speed 280 | 120 120 280 34 34 32 32 120 150 60 100 Overloaded Moves . | . . . . . . . . . . . Propulsion Burnouts . | . . . . . . . . . . . Robots Hopped 7 | . . . 1 . . . 5 . . 1 Cave-ins Triggered . | . . . . . . . . . . . Exploration Rate (%) 40 | 4 38 21 20 93 59 24 63 15 52 54 Regions Visited 10 Branch Regions 6 Pre-discovered Areas 1 | . . . . . 1 . . . . . Known Exits Taken . | . . . . . . . . . . . Unknown Exits Taken 10 | 1 1 1 1 1 1 1 1 1 1 . Scrap Searched 11 | . . . . 4 . 2 . . 1 4 Spaces Dug 50 | . . . . . . . 50 . . . Terrain Destroyed 127 | . . . 1 . . . 126 . . . Melee 6 | . . . . . . . 6 . . . Projectile 1 | . . . 1 . . . . . . . AOE 120 | . . . . . . . 120 . . . Terrain Rammed . | . . . . . . . . . . . Walls Destroyed . | . . . . . . . . . . . Machines Disabled . | . . . . . . . . . . . Actions | -11 -10 -10 -9 -9 -9 -8 -8 -7 -7 -7 --------- Run | Jun Mat Min Mat Min Exi Min Mat Fac Low Low Total 3674 | 73 252 110 181 452 214 110 871 617 346 448 Wait 338 | . 3 4 51 2 . 1 154 78 37 8 Move 3065 | 60 202 76 120 429 210 90 665 507 295 411 Hop 6 | . . . 1 . . . 4 . . 1 Pick Up 29 | 6 8 . 2 3 2 . 5 2 1 . Fast Attach 32 | 6 . 4 1 1 . 1 4 9 1 5 Attach 14 | . 1 1 3 1 . . 6 1 . 1 Detach 4 | . . . 1 . . . 3 . . . Swap 7 | . . . . 2 . 1 1 1 1 1 Drop 19 | . 5 2 1 2 2 . 5 . 1 1 Fire 103 | . 33 23 1 . . . 13 18 9 6 Melee 54 | . . . . 12 . 17 11 . 1 13 Ram 2 | . . . . . . . . 1 . 1 Kick 1 | 1 . . . . . . . . . . Crush . | . . . . . . . . . . . Escape Stasis . | . . . . . . . . . . . Rewire . | . . . . . . . . . . . Trap . | . . . . . . . . . . . Miscellaneous . | . . . . . . . . . . . Route ------- -11/Junkyard -10/Materials -10/Mines -9/Materials -9/Mines (discovered 3 exits: *Mat x2 / *Exi) -9/Exiles -8/Mines -8/Materials (discovered 3 exits: *Fac x3) -7/Factory -7/Lower Caves -7/Lower Caves History --------- Turn | Location | Event 12 | -11/Junkyard | Discovered new exit (range 15) 86 | -11/Junkyard | Entered Materials 314 | -10/Materials | Build established: Mutant 416 | -10/Materials | Discovered new exit (range 14) 440 | -10/Materials | Entered Mines 508 | -10/Mines | Core integrity fell below 50% 541 | -10/Mines | Discovered new exit (range 5) 548 | -10/Mines | Lost 3 parts (1n2w) 615 | -10/Mines | Entered Materials 615 | -9/Materials | Evolved 2 slots: Propulsion x1, Utility x1 711 | -9/Materials | Discovered new exit (range 15) 720 | -9/Materials | Entered Mines 756 | -9/Mines | Learned Materials trap positions 757 | -9/Mines | Learned 2 Materials zone layouts 847 | -9/Mines | Discovered new exit (range 6) 850 | -9/Mines | Received a Mining Laser from a helpful Derelict 894 | -9/Mines | Discovered new exit (range 15) 902 | -9/Mines | Deemed a non-threat by the Exiles lab entrance 902 | -9/Mines | Discovered new exit (range 5) 903 | -9/Mines | Entered Exiles 911 | -9/Exiles | Met 8R-AWN 917 | -9/Exiles | Met EX-HEX 926 | -9/Exiles | Met EX-BIN 930 | -9/Exiles | Aligned with FarCom system 930 | -9/Exiles | Given EX-Vault access code 938 | -9/Exiles | Opened EX-Vault 940 | -9/Exiles | Found Skeleton Box 949 | -9/Exiles | Warned to stay clear of 0b10 Research branches 959 | -9/Exiles | Met EX-DEC 961 | -9/Exiles | Learned location of Zion (-6) 971 | -9/Exiles | Discovered new exit (range 10) 974 | -9/Exiles | Left Exiles lab with Skeleton Box 974 | -9/Exiles | Entered Mines 1044 | -8/Mines | Discovered new exit (range 10) 1050 | -8/Mines | Entered Materials 1050 | -8/Materials | Evolved 2 slots: Propulsion x1, Utility x1 1052 | -8/Materials | Loaded intel: 19 trap records 1168 | -8/Materials | Discovered new exit (range 7) 1429 | -8/Materials | Discovered new exit (range 11) 1495 | -8/Materials | Core integrity fell below 50% 1528 | -8/Materials | Discovered new exit (range 11) 1535 | -8/Materials | Entered Factory 1535 | -7/Factory | Evolved 2 slots: Propulsion x1, Utility x1 1562 | -7/Factory | Lost 5 parts (3n1u1w) 1807 | -7/Factory | Build established: Hacker-Mutant 1927 | -7/Factory | Fabricated EM Disruption Field? 1994 | -7/Factory | Discovered new exit (range 6) 1997 | -7/Factory | Entered Lower Caves 2054 | -7/Lower Caves | Learned Factory terminal intel 2219 | -7/Lower Caves | Discovered new exit (range 14) 2227 | -7/Lower Caves | Entered another Lower Caves area 2284 | -7/Lower Caves | Spotted B-75 Beast 2285 | -7/Lower Caves | Core integrity fell below 50% 2330 | -7/Lower Caves | Lost 12 parts (7n2u3w) 2465 | -7/Lower Caves | Attracted the attention of an 0b10 outpost 2466 | -7/Lower Caves | Core integrity fell below 20% 2475 | -7/Lower Caves | Learned Factory garrison access intel 2490 | -7/Lower Caves | Destroyed by S-27 Virus with Autogun Last Messages --------------- 02417_ Found Imp. Terrain Scan Processor. 02417_ Found Imp. Melee Analysis Suite. 02417_ Found Launcher Guidance Computer. 02417_ Found 19 Matter. 02418_ Acquired Imp. Melee Analysis Suite. 02419_ Acquired 19 matter. 02421_ Acquired Imp. Terrain Scan Processor. 02422_ Discarded Imp. Melee Analysis Suite. 02461_ Y2-4D5(k) breaks down the debris. 02462_ System corrupted: Component data lost. 02462_ Slug penetrates Wall. 02465_ Y-64 Sentinel: "DETECTED UNIDENTIFIED DERELICT." 02465_ Penetrated by Slug. 02465_ Imp. Melee Analysis Suite destroyed. 02469_ Y-64 Sentinel: "REQUESTING BACKUP." 02469_ Acquired 17 matter. 02475_ Acquired derelict log, extracted data. Data stored: Factory garrison access intel. 02481_ Imp. Terrain Scanner destroyed. 02487_ Slammed into S-27 Virus. Map ----- +----------------------------------------------------+ | | | | | | | | | | | ?????????????????????????????????????????????????? | | ?????????????????????????????????????????????????? | | ?????????????????????????????????????????????????? | | ?????????????????????????????????????????????????? | | ?????????????????????????????????????????????????? | | ?????????????????????????????????????????????????? | | ?????????????????????????????????????????????????? | | ?????????????????????????????????????????????????? | | ?????????????????????????????????????????????????? | | ?????????????????????????????????????????????????? | | ????????????????????????#??#??#??????????????????? | | ?????????????????????????????????????????????????? | | ?????????????????????????????????????????????????? | | ??????????????????????????????#???#??????????????? | | ?????????????????????##?????????????????????#????? | | ?????????????????????# ????#???#######??####?????? | | ?????????????###????## ???##### ### ##????? | | ????????????## ### ##?# #????? | | ????????????# ### ### #????? | | ???????????# ## ### #?????? | | ??????????# @## # ####???? | | ??????????# s % ###??????? | | ???????????# ##?????#??? | | ???????????##### #### ##?#????#??? | | ???????????????## ???## ##????#?????? | | ????????????????# ???##### #???#?#???#?? | | ???????????????# ### #???????## #### #?????? | | ?????????????? ##??##??####???# #????????? | | ????????????? ??????#### ##??# #### #?????? | | ????????????? ?????### % ####% #### #?????? | | ?????????????? ????#?# ### #???????? | | ?????????????????????# % % #### #???????? | | ??????????????????#??### # % #??#???? ????? | | ???????????????????????## #########??? ? ??????? | | ????????????????????????## #?#########??????????? | | ?????????????# ????#####%### ## #???#??????? | | ????????????# #### ## ##?????????? | | ???????????? #?????????? | | ???????????? #???#???#?? | | ???????????? ### ##??##?????? | | ????????????????????# ##?#????????? | | ???????????????? ??# ####???????????? | | ??????????????? ???# ######## #####???????#??????? | | ??????????????? ???# #""""""# #??#????##?#???????? | | ?????????????? ????#?#" # #???####???????????? | +----------------------------------------------------+ Best States ------------- Heat Dissipation 34 Energy Generation 10 Energy Capacity 250 Matter Stores 300 Matter Capacity 300 Sight Range 16 Terrain Scan Range 16 Terrain Scan Density 110 Armor Coverage 150 Resistance: TH 10 Propulsion Shielding 66 Melee Speed Boost 20 Evasion (%) 63 Melee Accuracy 12 Offensive Hacking 20 Item Schematics ----------------- None Robot Schematics ------------------ M-28 Smith | -8/Mines | Hacked Fabricated ------------ EM Disruption Field | x2 | -7/Factory | Preloaded Alien Tech Used ----------------- None Achievements -------------- None Challenges ------------ None Game ------ Seed SpliceColdCanceller Manual? 0 Play Time 00:37:22 Cumulative 388.5 hours Start 2023.09.28 @ 14:11:25 End 2023.09.28 @ 14:46:18 Sessions 1 Manual Loads 0 Difficulty Rogue Special Mode None Game No. 244 Rogue 241 Adventurer 3 Explorer 0 Win Type - Total 7 Types 6/0/1/0/0/0/0/0/0 Lore% 69 Gallery% 76 Achievement% 66 Wizard Run 0 Options --------- ASCII 0 Keyboard 0 Movement Numpad Keybinds 0 Fullscreen 1 Font 18/SmallcapsGlow Map View 76x50 Tactical HUD 1 Map Filters NONE Filters NONE Steam 1 RUN: ab95682c-47bb-4978-a241-81767faaf0e7